bitfinex/quotes_ETHUSD_20251118
["timestamp","ask_amount","ask_price","bid_price","bid_amount"]
[1763452191233,1.189,3036.0,3035.4,0.4569]
[1763452191814,0.002,3036.2,3035.9,0.4744]
[1763452192003,1.471,3036.1,3035.4,0.4569]
[1763452192703,1.9139,3036.1,3035.3,0.1954]
[1763452192904,1.9139,3036.1,3035.1,0.1954]
[1763452193100,1.471,3036.1,3035.1,0.1954]
[1763452193351,0.4429,3036.0,3035.1,0.1954]
[1763452193841,0.1487,3035.9,3035.1,0.1954]
[1763452194001,0.13552911,3035.9,3035.1,0.6523]
[1763452194501,1.189,3036.1,3035.8,0.4744]
[1763452194700,1.471,3036.0,3035.8,0.4744]
[1763452194945,1.471,3036.0,3035.8,0.9313]
[1763452195147,1.471,3036.0,3035.9,0.4744]
[1763452195314,1.471,3036.0,3035.2,0.862404]
[1763452195843,1.471,3036.0,3035.3,0.4569]
[1763452196842,1.471,3036.0,3035.4,0.001]
[1763452197256,1.471,3036.0,3035.5,0.4569]
[1763452198375,1.471,3036.0,3035.9,0.4744]
[1763452198762,0.002,3036.1,3035.9,0.4744]
[1763452199075,1.471,3036.0,3035.5,0.4569]
[1763452199772,1.471,3036.0,3035.4,0.001]
[1763452200464,0.4297,3035.5,3035.4,0.001]
[1763452200667,0.7117,3035.5,3035.4,0.001]
[1763452200845,0.8308,3035.5,3035.4,0.001]
[1763452201041,0.8308,3035.5,3034.4,0.001]
[1763452201341,0.0012,3035.1,3034.4,0.001]
[1763452201543,0.4309,3035.1,3034.4,0.001]
[1763452201989,0.2624,3034.8,3034.4,0.001]
[1763452202156,0.5444,3034.8,3034.4,0.001]
[1763452202474,0.9722,3034.8,3034.4,0.001]
[1763452203200,0.405504,3034.7,3034.4,0.001]
[1763452203351,0.0043,3034.5,3034.0,0.001]
[1763452203539,0.1148,3034.1,3034.0,0.001]
[1763452203745,0.3968,3034.1,3034.0,0.001]
[1763452203944,0.8265,3034.1,3034.0,0.001]
[1763452205140,0.3968,3034.1,3034.0,0.001]
[1763452205343,0.5742,3034.8,3034.0,0.4754]
[1763452205677,0.282,3034.7,3034.1,0.1954]
[1763452205878,0.1355,3035.9,3034.1,0.2283587]
[1763452206045,0.4297,3035.5,3034.0,0.001]
[1763452206240,0.4297,3035.5,3034.1,0.1936]
[1763452206774,0.4297,3035.5,3034.1,0.6468]
[1763452206974,0.4297,3035.5,3034.1,0.1936]
[1763452207276,0.2636,3034.2,3034.0,0.001]
[1763452207474,0.282,3034.1,3034.0,0.001]
[1763452207693,0.4266,3034.7,3034.0,0.001]
[1763452207856,0.1445,3034.4,3034.0,0.001]
[1763452209673,0.5742,3034.4,3034.0,0.001]
[1763452210004,0.1191,3034.1,3034.0,0.001]
[1763452210777,0.4011,3034.1,3034.0,0.001]
[1763452210994,0.1445,3034.4,3034.0,0.001]
[1763452211187,1.472,3034.3,3034.0,0.001]
[1763452211391,0.1445,3034.9,3034.1,0.6468]
[1763452211578,0.1445,3034.9,3034.3,0.4822]
[1763452211767,2.662,3034.8,3034.3,0.4822]
[1763452212167,2.662,3034.8,3034.1,0.6468]
[1763452212487,2.662,3034.8,3034.0,0.001]
[1763452212986,2.662,3034.8,3034.1,0.1936]
[1763452213173,1.472,3034.7,3034.1,0.1936]
[1763452213484,8.93477151,3035.9,3034.1,0.6468]
[1763452213485,0.4297,3035.6,3034.1,0.6468]
[1763452213685,1.19,3035.5,3034.2,0.405504]
[1763452213989,0.282,3035.4,3034.2,0.858704]
[1763452214189,0.7117,3035.4,3034.2,0.858704]
[1763452214369,0.7117,3035.4,3034.2,0.405504]
[1763452214687,0.282,3035.4,3034.3,0.4532]
[1763452215192,0.002,3034.4,3034.3,0.4532]
[1763452215389,0.284,3034.4,3034.3,0.4532]
[1763452215596,0.284,3034.4,3034.3,0.9354]
[1763452217102,0.002,3034.4,3034.3,1.340904]
[1763452217296,1.474,3034.4,3034.3,1.340904]
[1763452219122,1.474,3034.4,3034.3,0.9354]
[1763452219318,1.474,3034.4,3034.1,0.1936]
[1763452219619,1.474,3034.4,3034.0,0.001]
[1763452220268,0.002,3034.4,3034.3,0.4573]
[1763452220674,1.474,3034.4,3034.1,0.1823]
[1763452220924,1.474,3034.4,3034.0,0.001]
[1763452221130,0.1191,3034.1,3034.0,0.001]
[1763452221328,1.474,3034.4,3034.0,0.001]
[1763452221614,1.9037,3034.4,3034.0,0.001]
[1763452221802,1.474,3034.4,3034.0,0.001]
[1763452222003,1.9037,3034.4,3034.0,0.001]
[1763452222385,0.284,3034.4,3034.0,0.001]
[1763452222891,0.282,3034.3,3034.1,0.1823]
[1763452223114,0.282,3034.3,3034.0,0.4887]
[1763452223115,0.282,3034.3,3034.0,0.001]
[1763452224018,0.002,3034.4,3034.0,0.001]
[1763452224207,0.1191,3034.1,3034.0,0.001]
[1763452224719,0.282,3034.3,3034.0,0.001]
[1763452225118,0.1191,3034.1,3034.0,0.001]
[1763452225798,0.002,3034.4,3034.0,0.946]
[1763452226122,0.282,3034.3,3034.0,0.001]
[1763452227517,0.002,3034.4,3034.2,0.4573]
[1763452227804,0.282,3034.3,3034.1,0.1823]
[1763452228028,0.282,3034.3,3034.2,0.4877]
[1763452228226,0.282,3034.3,3034.2,0.945]
[1763452229041,0.002,3034.4,3034.2,0.945]
[1763452229342,0.002,3034.4,3034.3,0.4573]
[1763452229513,0.284,3034.4,3034.1,0.1823]
[1763452230417,0.284,3034.4,3034.0,0.001]
[1763452230730,0.284,3034.4,3034.1,0.1823]
[1763452230915,0.002,3034.4,3034.3,0.4573]
[1763452231115,1.474,3034.4,3034.0,0.001]
[1763452232142,0.1191,3034.1,3034.0,0.001]
[1763452232704,0.5457,3034.1,3034.0,0.001]
[1763452233245,0.1191,3034.1,3034.0,0.001]
[1763452234245,0.282,3034.1,3034.0,0.001]
[1763452235149,0.282,3034.1,3034.0,0.4583]
[1763452235310,0.282,3034.1,3034.0,0.001]
[1763452235739,0.4011,3034.1,3034.0,0.001]
[1763452236326,0.8277,3034.1,3034.0,0.001]
[1763452237154,0.002,3034.4,3034.0,0.9684]
[1763452237494,0.002,3034.4,3034.3,1.077404]
[1763452237638,0.284,3034.4,3034.3,1.077404]
[1763452237832,0.284,3034.4,3034.3,1.559804]
[1763452238076,0.284,3034.4,3034.3,3.61735262]
[1763452238244,0.284,3034.4,3034.3,2.91923117]
[1763452238443,0.284,3034.4,3034.3,2.06129264]
[1763452239054,0.284,3034.4,3034.3,1.1543]
[1763452239628,0.284,3034.4,3034.3,0.6719]
[1763452240470,0.002,3034.4,3034.3,1.1543]
[1763452240638,0.284,3034.4,3034.3,1.1543]
[1763452241162,1.474,3034.4,3034.3,1.1543]
[1763452241883,1.474,3034.4,3034.3,1.559804]
[1763452243185,1.474,3034.4,3034.3,1.1543]
[1763452243984,1.474,3034.4,3034.3,1.559804]
[1763452246794,1.474,3034.4,3034.3,1.1543]
[1763452246967,1.474,3034.4,3034.3,0.6719]
[1763452247160,1.474,3034.4,3034.3,1.1543]
[1763452247360,0.002,3034.4,3034.3,1.559804]
[1763452247676,1.474,3034.4,3034.3,1.559804]
[1763452247878,1.474,3034.4,3034.3,1.1543]
[1763452248505,1.474,3034.4,3034.3,0.6719]
[1763452248705,1.474,3034.4,3034.1,0.1869]
[1763452249290,1.474,3034.4,3034.3,0.001]
[1763452250397,1.5931,3034.4,3034.3,0.001]
[1763452250566,0.8297,3034.4,3034.3,0.001]
[1763452250978,0.8297,3034.4,3034.3,0.486]
[1763452250979,0.002,3034.4,3034.3,0.486]
[1763452251197,1.474,3034.4,3034.3,0.486]
[1763452251668,1.474,3034.4,3034.3,0.9684]
[1763452252656,0.284,3034.4,3034.3,0.9684]
[1763452252858,1.474,3034.4,3034.3,0.9684]
[1763452254006,1.192,3034.4,3034.3,0.9684]
[1763452254210,1.474,3034.4,3034.3,0.9684]
[1763452254507,1.474,3034.4,3034.3,1.373904]
[1763452256196,1.474,3034.4,3034.3,0.9684]
[1763452257591,1.474,3034.4,3034.3,0.486]
[1763452258299,1.474,3034.4,3034.3,0.001]
[1763452258910,1.474,3034.4,3034.3,0.9684]
[1763452260103,1.474,3034.4,3034.3,0.486]
[1763452260418,1.474,3034.4,3034.3,0.9684]
[1763452260785,1.474,3034.4,3034.3,1.373904]
[1763452260786,1.192,3034.4,3034.3,1.373904]
[1763452260990,0.002,3035.1,3034.8,0.405504]
[1763452261199,0.002,3035.1,3035.0,11.3645024]
[1763452261375,1.474,3035.1,3035.0,12.00824329]
[1763452261703,1.474,3035.1,3035.0,13.15930723]
[1763452262384,1.474,3035.1,3035.0,12.00824329]
[1763452263211,1.474,3035.1,3035.0,13.15930723]
[1763452263412,1.474,3035.1,3035.0,12.00824329]
[1763452263716,1.474,3035.1,3035.0,3.59230147]
[1763452263892,1.474,3035.1,3035.0,2.27989664]
[1763452266286,1.474,3035.1,3034.3,0.001]
[1763452266287,1.474,3035.1,3034.4,1.60556394]
[1763452266617,1.474,3035.1,3034.4,0.4545]
[1763452266838,1.474,3035.1,3035.0,0.4508]
[1763452267788,1.473,3035.1,3035.0,0.4508]
[1763452267998,1.473,3035.1,3035.0,1.310804]
[1763452268192,1.473,3035.1,3035.0,0.9053]
[1763452269125,1.473,3035.1,3035.0,0.4508]
[1763452269290,1.5881,3035.1,3034.4,1.60556394]
[1763452269489,1.5881,3035.1,3034.4,0.33331598]
[1763452269692,1.5881,3035.1,3034.3,0.406504]
[1763452270023,1.5881,3035.1,3034.3,0.001]
[1763452270238,2.0187,3035.1,3034.3,0.001]
[1763452270442,1.5881,3035.1,3034.3,0.001]
[1763452270736,2.0187,3035.1,3034.3,0.001]
[1763452271839,1.5881,3035.1,3034.3,0.4555]
[1763452272353,1.473,3035.1,3034.4,0.405504]
[1763452272554,1.473,3035.1,3035.0,0.4508]
[1763452273052,1.473,3035.1,3035.0,0.9053]
[1763452273424,1.473,3035.1,3035.0,1.310804]
[1763452274317,1.473,3035.1,3034.5,1.15106394]
[1763452274631,1.473,3035.1,3034.6,0.61130966]
[1763452274829,1.473,3035.1,3035.0,0.4508]
[1763452276063,1.473,3035.1,3035.0,0.9053]
[1763452276235,1.473,3035.1,3035.0,0.4508]
[1763452277332,1.473,3035.1,3034.8,0.405504]
[1763452278452,1.473,3035.1,3034.7,0.4545]
[1763452278836,1.473,3035.1,3034.4,0.4545]
[1763452279038,1.473,3035.1,3035.0,0.4508]
[1763452279853,1.473,3035.1,3035.0,0.9444]
[1763452281157,0.002,3035.1,3035.0,1.349904]
[1763452281364,1.473,3035.1,3035.0,1.349904]
[1763452282175,1.473,3035.1,3035.0,1.69399517]
[1763452283972,1.473,3035.1,3035.0,2.60098781]
[1763452284275,0.002,3035.1,3035.0,2.60098781]
[1763452284477,1.473,3035.1,3035.0,4.36053264]
[1763452284773,1.473,3035.1,3035.0,4.32758372]
[1763452285444,1.473,3035.1,3035.0,1.70188381]
[1763452285639,1.473,3035.1,3035.0,0.4508]
[1763452285841,1.473,3035.1,3034.4,0.90799264]
[1763452285842,1.5881,3035.1,3034.7,1.15462209]
[1763452286074,1.5881,3035.1,3034.4,0.001]
[1763452286268,1.5881,3035.1,3034.4,0.406504]
[1763452286483,1.5881,3035.1,3034.4,0.4946]
[1763452286880,1.5881,3035.1,3034.5,0.405504]
[1763452287288,1.5881,3035.1,3034.4,0.4946]
[1763452287455,1.473,3035.1,3034.5,0.16502221]
[1763452287785,1.473,3035.1,3034.6,0.405504]
[1763452287988,1.473,3035.1,3034.8,0.405504]
[1763452288191,1.473,3035.1,3035.0,0.868104]
[1763452289577,1.473,3035.1,3035.0,1.361704]
[1763452289977,1.473,3035.1,3035.0,1.70403587]
[1763452290985,1.473,3035.1,3035.0,3.7656506]
[1763452291893,1.473,3035.1,3035.0,3.76715043]
[1763452292778,1.473,3035.1,3035.0,2.11742851]
[1763452292978,1.473,3035.1,3035.0,1.36959264]
[1763452295163,1.473,3035.1,3035.0,1.86319264]
[1763452295787,1.473,3035.1,3035.0,1.77509664]
[1763452297406,1.473,3035.1,3035.0,2.23349664]
[1763452298007,1.473,3035.1,3035.0,1.77509664]
[1763452298204,1.473,3035.1,3035.0,2.0682185]
[1763452298619,1.473,3035.1,3035.0,1.6056185]
[1763452298775,1.473,3035.1,3035.0,1.31249664]
[1763452299106,1.5881,3035.1,3035.0,0.90699264]
[1763452299311,1.473,3035.1,3035.0,0.90699264]
[1763452299891,1.473,3035.1,3035.0,1.40359264]
[1763452301640,1.473,3035.1,3035.0,0.90699264]
[1763452301790,1.473,3035.1,3035.0,1.40359264]
[1763452302127,1.473,3035.1,3035.0,2.1143031]
[1763452302895,1.473,3035.1,3035.0,2.5727031]
[1763452304693,1.473,3035.1,3035.0,3.72882502]
[1763452309836,1.473,3035.1,3035.0,2.5727031]
[1763452313549,1.473,3035.1,3035.0,2.1143031]
[1763452313749,1.473,3035.1,3035.0,3.27452766]
[1763452313968,2.0187,3035.1,3035.0,2.0672172]
[1763452314249,2.0187,3035.1,3035.0,0.90699264]
[1763452314620,0.002,3035.1,3035.0,0.90699264]
[1763452314826,1.473,3035.1,3035.0,0.90699264]
[1763452315007,1.5913,3035.1,3035.0,0.90699264]
[1763452315716,1.473,3035.1,3035.0,2.66291954]
[1763452316254,1.473,3035.1,3035.0,2.91615146]
[1763452316470,0.002,3035.1,3035.0,2.91615146]
[1763452316618,1.473,3035.1,3035.0,2.91615146]
[1763452316822,1.473,3035.1,3035.0,3.37455146]
[1763452317023,1.473,3035.1,3035.0,2.2143269]
[1763452317251,1.473,3035.1,3035.0,3.12131954]
[1763452317454,1.473,3035.1,3035.0,4.84791545]
[1763452319948,1.473,3035.1,3035.0,4.38951545]
[1763452320664,1.473,3035.1,3035.0,3.12131954]
[1763452320833,0.002,3035.5,3035.0,3.12131954]
[1763452320834,0.002,3035.5,3035.1,1.62462859]
[1763452321156,0.002,3035.5,3035.4,10.79170326]
[1763452321372,1.473,3035.5,3035.4,10.78738228]
[1763452321579,1.473,3035.5,3035.4,11.24578228]
[1763452322238,1.473,3035.5,3035.4,1.31249664]
[1763452322437,1.473,3035.5,3035.4,4.24351055]
[1763452322669,1.473,3035.5,3035.4,2.50427033]
[1763452323183,1.473,3035.5,3035.3,0.405504]
[1763452323479,1.473,3035.5,3035.4,0.902104]
[1763452324163,1.473,3035.5,3035.4,1.80909664]
[1763452324364,1.473,3035.5,3035.4,2.96864709]
[1763452324683,1.473,3035.5,3035.4,3.42704709]
[1763452324880,1.473,3035.5,3035.4,3.43112655]
[1763452325251,1.473,3035.5,3035.4,2.47612655]
[1763452325252,1.9067,3035.5,3035.4,2.47612655]
[1763452325552,1.9067,3035.5,3035.4,1.31249664]
[1763452325885,0.4357,3035.5,3035.4,1.31249664]
[1763452326102,1.9067,3035.5,3035.3,1.15939028]
[1763452326386,0.0012,3035.4,3035.2,0.90699264]
[1763452326587,0.0012,3035.4,3035.3,0.405504]
[1763452326780,1.473,3035.5,3035.3,0.405504]
[1763452327290,1.473,3035.5,3035.2,0.405504]
[1763452327984,1.473,3035.5,3035.2,1.56489428]
[1763452328691,0.002,3035.5,3035.4,0.902104]
[1763452328899,1.473,3035.5,3035.4,0.405504]
[1763452329110,1.191,3035.5,3035.4,1.64021801]
[1763452329262,1.191,3035.5,3035.4,1.60727343]
[1763452329263,1.473,3035.5,3035.4,1.60727343]
[1763452329464,1.473,3035.5,3035.4,3.67365635]
[1763452329660,1.473,3035.5,3035.4,3.17485635]
[1763452329990,1.473,3035.5,3035.4,2.67825635]
[1763452330205,1.5881,3035.5,3035.4,2.67825635]
[1763452330353,1.5881,3035.5,3035.4,1.31249664]
[1763452330968,1.473,3035.5,3035.4,1.31249664]
[1763452331970,0.002,3035.5,3035.4,1.80909664]
[1763452332164,1.473,3035.5,3035.4,2.15582533]
[1763452332388,0.002,3035.5,3035.4,3.81401561]
[1763452332599,1.473,3035.5,3035.4,3.31521561]
[1763452333700,1.9067,3035.5,3035.4,1.15939028]
[1763452333854,2.0218,3035.5,3035.0,0.001]
[1763452334058,2.0218,3035.5,3034.6,1.0745305]
[1763452334059,0.0023,3034.7,3034.6,1.0745305]
[1763452334359,0.2843,3034.7,3034.4,0.001]
[1763452336266,0.282,3034.7,3034.4,0.001]
[1763452336466,0.002,3035.5,3034.7,0.405504]
[1763452336868,0.002,3035.5,3034.8,0.405504]
[1763452336869,1.471,3035.4,3034.8,0.405504]
[1763452337255,1.9047,3035.4,3034.6,0.405504]
[1763452337456,0.4337,3035.3,3034.6,0.405504]
[1763452338272,0.4337,3035.3,3034.4,0.001]
[1763452339383,0.1151,3034.5,3034.4,0.001]
[1763452339588,0.3971,3034.5,3034.4,0.001]
[1763452339986,0.282,3034.5,3034.4,0.001]
[1763452340501,0.3974,3034.5,3034.4,0.001]
[1763452341887,0.1445,3034.8,3034.4,0.001]
[1763452342081,1.471,3034.7,3034.4,0.4516]
[1763452342277,1.471,3034.7,3034.4,0.001]
[1763452342981,0.1151,3034.5,3034.4,0.001]
[1763452344122,0.5457,3034.5,3034.4,0.001]
[1763452344869,0.67792725,3034.5,3034.4,0.001]
[1763452345585,0.8277,3034.5,3034.4,0.001]
[1763452346746,0.3971,3034.5,3034.4,0.001]
[1763452346949,0.1151,3034.5,3034.4,0.001]
[1763452347248,0.282,3034.5,3034.4,0.001]
[1763452347460,0.002,3035.5,3034.5,0.405504]
[1763452347602,0.7157,3035.4,3034.5,0.405504]
[1763452348317,0.282,3035.4,3034.6,0.4502]
[1763452349408,0.7157,3035.4,3034.4,0.406504]
[1763452349853,0.7157,3035.4,3034.4,0.856704]
[1763452350390,0.282,3035.4,3034.6,0.405504]
[1763452350502,0.4337,3035.3,3034.6,0.405504]
[1763452350705,0.4337,3035.3,3034.4,0.001]
[1763452350912,0.002,3034.7,3034.5,0.405504]
[1763452351136,1.471,3034.6,3034.5,0.405504]
[1763452351338,1.471,3034.6,3034.5,0.855704]
[1763452351501,1.471,3034.6,3034.5,1.306304]
[1763452353334,0.282,3034.6,3034.5,1.306304]
[1763452353529,1.471,3034.6,3034.5,1.306304]
[1763452354424,1.471,3034.6,3034.5,5.206304]
[1763452354624,1.471,3034.6,3034.5,5.7271344]
[1763452355422,1.471,3034.6,3034.5,6.22862304]
[1763452355638,1.471,3034.6,3034.5,6.63412704]
[1763452355926,0.002,3034.7,3034.5,6.63412704]
[1763452356141,0.002,3034.7,3034.6,0.9636]
[1763452356353,1.473,3034.7,3034.6,5.97184997]
[1763452356541,1.473,3034.7,3034.6,5.9388967]
[1763452356745,0.002,3034.7,3034.6,5.9388967]
[1763452356921,1.473,3034.7,3034.6,5.97184997]
[1763452357328,1.473,3034.7,3034.6,6.87884261]
[1763452357526,0.002,3035.1,3034.7,1.31249664]
[1763452357725,0.002,3035.1,3035.0,10.57574018]
[1763452357965,1.471,3035.1,3035.0,10.57574018]
[1763452358164,1.471,3035.1,3035.0,13.38739346]
[1763452358465,1.471,3035.1,3035.0,11.07394018]
[1763452359264,1.471,3035.1,3035.0,2.27609664]
[1763452359465,1.471,3035.1,3035.0,2.75879237]
[1763452359669,1.471,3035.1,3035.0,0.94809573]
[1763452359964,1.471,3035.1,3035.0,0.405504]
[1763452360163,1.471,3035.1,3035.0,0.870904]
[1763452360365,1.471,3035.1,3035.0,0.9636]
[1763452360733,0.002,3035.4,3035.1,0.405504]
[1763452360934,0.002,3035.4,3035.3,0.4654]
[1763452361268,1.473,3035.4,3035.1,1.094604]
[1763452361440,1.473,3035.4,3035.1,0.596404]
[1763452362849,1.473,3035.4,3035.1,0.405504]
[1763452363671,1.473,3035.4,3034.6,1.7350221]
[1763452363672,0.1151,3035.2,3034.6,1.7350221]
[1763452363882,0.0043,3034.9,3034.4,0.001]
[1763452364185,0.282,3034.8,3034.4,0.22452221]
[1763452364385,0.282,3034.8,3034.4,0.001]
[1763452364540,0.4337,3034.5,3034.4,0.001]
[1763452366671,1.9047,3034.5,3034.4,0.001]
[1763452369598,2.0198,3034.5,3034.4,0.001]
[1763452373985,1.471,3034.5,3034.4,0.4664]
[1763452374282,1.9016,3034.5,3034.4,0.001]
[1763452375076,2.0199,3034.5,3034.4,0.001]
[1763452376084,0.4306,3034.5,3034.4,0.001]
[1763452376285,1.9016,3034.5,3034.4,0.001]
[1763452376653,2.0199,3034.5,3034.4,0.001]
[1763452376858,0.5489,3034.5,3034.4,0.001]
[1763452377183,2.0199,3034.5,3034.4,0.001]
[1763452378888,2.152129,3034.5,3034.4,0.001]
[1763452380593,0.1445,3034.9,3034.4,0.4664]
[1763452380797,0.282,3034.8,3034.4,0.4664]
[1763452380956,0.282,3034.8,3034.4,0.001]
[1763452381157,1.19,3034.7,3034.4,0.001]
[1763452381358,0.4337,3034.5,3034.4,0.001]
[1763452381760,1.472,3034.5,3034.4,0.9646]
[1763452381957,1.19,3034.5,3034.4,1.370104]
[1763452382163,0.002,3035.1,3034.5,0.405504]
[1763452382389,1.472,3035.0,3034.5,0.405504]
[1763452382694,1.472,3035.0,3034.4,0.001]
[1763452382990,0.1445,3034.9,3034.4,0.406504]
[1763452383490,0.5782,3034.9,3034.4,0.001]
[1763452383992,0.1445,3034.9,3034.4,0.001]
[1763452384190,0.4337,3034.5,3034.4,0.001]
[1763452384415,0.7157,3034.5,3034.4,0.001]
[1763452384998,1.471,3034.5,3034.4,0.001]
[1763452385490,1.9047,3034.5,3034.4,0.001]
[1763452385693,0.8308,3034.5,3034.4,0.001]
[1763452387386,0.8308,3034.5,3034.3,0.001]
[1763452387593,0.8308,3034.5,3034.1,0.001]
[1763452387594,0.4349,3034.4,3034.1,0.001]
[1763452387793,0.114,3034.2,3034.1,0.001]
[1763452388312,0.436,3034.1,3033.8,0.001]
[1763452388509,0.3949,3034.0,3033.8,0.001]
[1763452388723,0.8277,3034.0,3033.8,0.001]
[1763452391118,4.11469264,3034.0,3033.8,0.001]
[1763452393152,1.73469264,3034.0,3033.8,0.001]
[1763452393312,1.73469264,3034.0,3032.2,0.4893]
[1763452393313,0.4328,3033.8,3032.2,0.4893]
[1763452393517,0.4296,3033.7,3032.2,0.4893]
[1763452393746,0.7116,3033.7,3032.2,0.4893]
[1763452394045,0.8308,3033.7,3032.2,0.4893]
[1763452394433,0.5488,3033.7,3032.0,0.405504]
[1763452394642,0.5488,3033.7,3032.5,0.4893]
[1763452394823,0.4296,3033.7,3033.1,0.193]
[1763452395025,0.282,3033.7,3033.1,0.193]
[1763452395350,0.7085,3033.7,3033.1,0.193]
[1763452396248,0.8308,3033.7,3032.8,0.193]
[1763452396412,0.8308,3033.7,3032.4,0.405504]
[1763452396616,0.8308,3033.7,3032.3,0.4893]
[1763452397351,0.8308,3033.7,3031.9,0.1909]
[1763452397352,0.8308,3033.7,3032.5,0.4893]
[1763452397551,0.8308,3033.7,3032.0,0.405504]
[1763452397774,0.8308,3033.7,3032.2,0.405504]
[1763452397936,0.8308,3033.7,3032.3,0.4893]
[1763452398270,0.8308,3033.7,3031.9,0.1909]
[1763452398424,0.8308,3033.7,3032.0,0.894804]
[1763452400152,0.8308,3033.7,3032.0,0.405504]
[1763452400153,0.5488,3033.7,3032.0,0.405504]
[1763452400316,0.8308,3033.7,3032.6,0.4657]
[1763452400713,0.8308,3033.7,3032.0,0.405504]
[1763452400956,0.8308,3033.7,3032.1,0.4657]
[1763452401118,4.11779264,3033.7,3032.1,0.4657]
[1763452401318,2.426304,3033.7,3032.1,0.4657]
[1763452401750,1.236304,3033.7,3031.9,0.1909]
[1763452402351,1.236304,3033.7,3033.2,0.001]
[1763452402557,0.1139,3033.3,3033.2,0.001]
[1763452402863,0.801404,3033.3,3033.2,0.001]
[1763452403117,1.233204,3033.3,3033.2,0.001]
[1763452403232,0.8277,3033.3,3033.2,0.001]
[1763452405565,0.8277,3033.3,3033.2,0.001]
[1763452407458,1.233204,3033.3,3033.2,0.001]
[1763452408439,0.4657,3033.4,3033.2,0.6594]
[1763452408624,0.4337,3034.4,3033.3,0.4695]
[1763452408829,0.002,3034.5,3033.3,0.9352]
[1763452408830,0.4337,3034.3,3033.3,0.9352]
[1763452409154,0.282,3034.2,3033.3,0.9352]
[1763452409361,0.282,3034.2,3033.4,0.4657]
[1763452409891,0.1915,3034.3,3033.2,0.17152457]
[1763452410068,0.282,3034.2,3033.2,0.17152457]
[1763452411167,2.38,3034.1,3033.2,0.17152457]
[1763452411770,2.38,3034.1,3033.3,0.4657]
[1763452412388,3.28699264,3034.1,3033.3,0.4657]
[1763452413261,3.78629264,3034.1,3033.2,0.17152457]
[1763452413466,3.78629264,3034.1,3033.2,0.63722457]
[1763452413863,3.78629264,3034.1,3033.2,0.17152457]
[1763452414083,0.5013,3034.5,3033.3,0.4657]
[1763452414390,1.19,3034.0,3033.3,0.4657]
[1763452414599,0.282,3033.9,3033.3,0.4657]
[1763452415095,0.4735,3033.9,3033.3,0.4657]
[1763452415401,0.9728,3033.9,3033.2,0.17152457]
[1763452415814,0.4735,3033.9,3032.9,0.001]
[1763452416109,0.4773,3033.8,3032.9,0.001]
[1763452416471,0.282,3033.7,3033.0,0.4731]
[1763452416664,0.282,3033.6,3033.0,0.4731]
[1763452419203,0.1915,3033.9,3033.0,0.4731]
[1763452419406,0.6747,3034.6,3033.8,0.4997]
[1763452419613,0.6747,3034.6,3033.0,0.4741]
[1763452419614,0.7593,3034.4,3033.0,0.4741]
[1763452419906,0.002,3034.0,3033.0,0.4741]
[1763452420207,0.282,3033.9,3033.0,0.4741]
[1763452421205,2.38,3033.8,3033.0,0.4741]
[1763452421416,2.38,3033.8,3033.0,4.3741]
[1763452421712,2.38,3033.8,3033.1,0.43751]
[1763452421926,2.38,3033.8,3033.1,0.91061]
[1763452422427,2.38,3033.8,3033.2,0.4731]
[1763452424228,2.38,3033.8,3033.7,0.4997]
[1763452425348,2.38,3033.8,3033.4,0.4731]
[1763452425552,2.6656,3033.8,3033.1,0.4731]
[1763452425698,1.4756,3033.8,3033.1,0.91061]
[1763452426341,1.4756,3033.8,3033.2,0.4731]
[1763452426527,1.4756,3033.8,3033.1,0.43751]
[1763452426844,1.19,3033.8,3033.7,0.4997]
[1763452427206,0.002,3034.0,3033.7,0.4997]
[1763452427401,0.002,3034.0,3033.9,0.4997]
[1763452427648,0.284,3034.0,3033.9,0.9728]
[1763452427949,0.002,3034.0,3033.9,0.9728]
[1763452428438,0.284,3034.0,3033.9,0.9728]
[1763452428740,0.002,3034.0,3033.9,0.9728]
[1763452428928,0.284,3034.0,3033.9,0.9728]
[1763452429329,0.002,3034.0,3033.9,0.9728]
[1763452429506,0.284,3034.0,3033.9,0.9728]
[1763452430338,0.284,3034.0,3033.9,1.378304]
[1763452431506,1.474,3034.0,3033.9,1.378304]
[1763452432337,0.002,3034.0,3033.9,1.378304]
[1763452432537,1.474,3034.0,3033.9,1.378304]
[1763452432849,0.002,3034.4,3034.0,0.405504]
[1763452433009,0.002,3034.4,3034.3,1.092004]
[1763452433338,1.474,3034.4,3034.3,1.092004]
[1763452433641,1.474,3034.4,3034.3,1.565104]
[1763452436631,1.474,3034.4,3034.3,5.465104]
[1763452437242,1.474,3034.4,3034.3,6.37209664]
[1763452437442,1.474,3034.4,3034.3,7.0093063]
[1763452439859,0.283,3034.4,3034.3,7.0093063]
[1763452440023,1.473,3034.4,3034.3,7.0093063]